fUST/lending_fUST_20240606
["ID","MTS","AMOUNT","RATE_DAILY","PERIOD"]
[328658319,1717680639680,-500.0,0.00024657,2]
[328658321,1717680639692,-500.0,0.00024657,2]
[328658322,1717680639702,-500.0,0.00024657,2]
[328658324,1717680639713,-500.0,0.00024657,2]
[328658326,1717680639724,-500.0,0.00024657,2]
[328658328,1717680639734,-500.0,0.00024657,2]
[328658330,1717680639746,-500.0,0.00024657,2]
[328658332,1717680639756,-500.0,0.00024657,2]
[328658334,1717680639766,-500.0,0.00024657,2]
[328658335,1717680639776,-199.37533274,0.00024657,2]
[328658337,1717680639787,-534.41102884,0.00024657,2]
[328658339,1717680639797,-500.0,0.00024657,2]
[328658341,1717680639807,-500.0,0.00024657,2]
[328658343,1717680639817,-433.46261431,0.00024657,2]
[328658345,1717680639827,-500.0,0.00024657,2]
[328658347,1717680639837,-500.0,0.00024657,2]
[328658348,1717680639847,-500.0,0.00024657,2]
[328658350,1717680639857,-500.0,0.00024657,2]
[328658352,1717680639867,-500.0,0.00024657,2]
[328658354,1717680639877,-625.81,0.00024657,2]
[328658356,1717680639887,-500.0,0.00024657,2]
[328658358,1717680639897,-500.0,0.00024657,2]
[328658360,1717680639908,-500.0,0.00024657,2]
[328658361,1717680639918,-868.14,0.00024657,2]
[328658363,1717680639928,-500.0,0.00024657,2]
[328658365,1717680639939,-500.0,0.00024657,2]
[328658367,1717680639949,-500.0,0.00024657,2]
[328658369,1717680639958,-500.0,0.00024657,2]
[328658371,1717680639968,-500.0,0.00024657,2]
[328658372,1717680639978,-500.0,0.00024657,2]
[328658374,1717680639988,-500.0,0.00024657,2]
[328658376,1717680640000,-156.69722251,0.00024657,2]
[328658378,1717680640010,-1189.46,0.00024657,2]
[328658380,1717680640020,-500.0,0.00024657,2]
[328658382,1717680640029,-799.75,0.00024657,2]
[328658384,1717680640039,-500.0,0.00024657,2]
[328658386,1717680640049,-500.0,0.00024657,2]
[328658387,1717680640058,-500.0,0.00024657,2]
[328658389,1717680640069,-500.0,0.00024657,2]
[328658391,1717680640079,-500.0,0.00024657,2]
[328658393,1717680640089,-500.0,0.00024657,2]
[328658395,1717680640099,-625.63159404,0.00024657,2]
[328658397,1717680640109,-500.0,0.00024657,2]
[328658399,1717680640119,-500.0,0.00024657,2]
[328658401,1717680640128,-500.0,0.00024657,2]
[328658402,1717680640138,-500.0,0.00024657,2]
[328658404,1717680640148,-500.0,0.00024657,2]
[328658406,1717680640159,-281.63022182,0.00024657,2]
[328658408,1717680640169,-500.0,0.00024657,2]
[328658410,1717680640179,-500.0,0.00024657,2]
[328658412,1717680640189,-500.0,0.00024657,2]
[328658414,1717680640200,-2370.89,0.00024657,2]
[328658416,1717680640210,-500.0,0.00024657,2]
[328658417,1717680640219,-500.0,0.00024657,2]
[328658419,1717680640229,-500.0,0.00024657,2]
[328658421,1717680640240,-500.0,0.00024657,2]
[328658423,1717680640251,-500.0,0.00024657,2]
[328658425,1717680640262,-500.0,0.00024657,2]
[328658427,1717680640272,-500.0,0.00024657,2]
[328658429,1717680640283,-500.0,0.00024657,2]
[328658431,1717680640293,-500.0,0.00024657,2]
[328658432,1717680640303,-500.0,0.00024657,2]
[328658434,1717680640314,-500.0,0.00024657,2]
[328658436,1717680640324,-641.99570024,0.00024657,2]
[328658438,1717680640334,-500.0,0.00024657,2]
[328658440,1717680640345,-500.0,0.00024657,2]
[328658442,1717680640355,-500.0,0.00024657,2]
[328658444,1717680640365,-500.0,0.00024657,2]
[328658446,1717680640376,-500.0,0.00024657,2]
[328658448,1717680640387,-503.74802448,0.00024657,2]
[328658450,1717680640397,-500.0,0.00024657,2]
[328658451,1717680640408,-500.0,0.00024657,2]
[328658453,1717680640418,-500.0,0.00024657,2]
[328658455,1717680640428,-500.0,0.00024657,2]
[328658457,1717680640439,-500.0,0.00024657,2]
[328658459,1717680640449,-765.17,0.00024657,2]
[328658461,1717680640459,-500.0,0.00024657,2]
[328658478,1717680640661,-500.0,0.00024657,2]
[328658480,1717680640671,-500.0,0.00024657,2]
[328658482,1717680640682,-500.0,0.00024657,2]
[328658484,1717680640694,-500.0,0.00024657,2]
[328658486,1717680640707,-500.0,0.00024657,2]
[328658488,1717680640717,-500.0,0.00024657,2]
[328658490,1717680640727,-500.0,0.00024657,2]
[328658492,1717680640738,-500.0,0.00024657,2]
[328658494,1717680640751,-500.0,0.00024657,2]
[328658496,1717680640762,-500.0,0.00024657,2]
[328658498,1717680640771,-500.0,0.00024657,2]
[328658500,1717680640782,-500.0,0.00024657,2]
[328658502,1717680640792,-500.0,0.00024657,2]
[328658503,1717680640801,-500.0,0.00024657,2]
[328658505,1717680640812,-500.0,0.00024657,2]
[328658507,1717680640822,-500.0,0.00024657,2]
[328658509,1717680640832,-500.0,0.00024657,2]
[328658511,1717680640843,-500.0,0.00024657,2]
[328658513,1717680640853,-500.0,0.00024657,2]
[328658515,1717680640863,-500.0,0.00024657,2]
[328658517,1717680640873,-500.0,0.00024657,2]
[328658518,1717680640883,-165.36070291,0.00024657,2]
[328658520,1717680640893,-500.0,0.00024657,2]
[328658522,1717680640904,-500.0,0.00024657,2]
[328658524,1717680640914,-500.0,0.00024657,2]
[328658526,1717680640924,-500.0,0.00024657,2]
[328658528,1717680640935,-1264.2,0.00024657,2]
[328658530,1717680640945,-500.0,0.00024657,2]
[328658532,1717680640956,-500.0,0.00024657,2]
[328658534,1717680640967,-500.0,0.00024657,2]
[328658535,1717680640977,-500.0,0.00024657,2]
[328658537,1717680640987,-500.0,0.00024657,2]
[328658539,1717680641000,-500.0,0.00024657,2]
[328658541,1717680641010,-500.0,0.00024657,2]
[328658543,1717680641020,-500.0,0.00024657,2]
[328658545,1717680641029,-500.0,0.00024657,2]
[328658547,1717680641039,-500.0,0.00024657,2]
[328658549,1717680641050,-500.0,0.00024657,2]
[328658551,1717680641060,-500.0,0.00024657,2]
[328658552,1717680641070,-500.0,0.00024657,2]
[328658554,1717680641080,-500.0,0.00024657,2]
[328658556,1717680641090,-500.0,0.00024657,2]
[328658558,1717680641100,-500.0,0.00024657,2]
[328658560,1717680641111,-500.0,0.00024657,2]
[328658561,1717680641122,-500.0,0.00024657,2]
[328658563,1717680641132,-500.0,0.00024657,2]
[328658565,1717680641143,-500.0,0.00024657,2]
[328658567,1717680641153,-500.0,0.00024657,2]
[328658568,1717680641163,-500.0,0.00024657,2]
[328658569,1717680641173,-500.0,0.00024657,2]
[328658570,1717680641184,-500.0,0.00024657,2]
[328658571,1717680641194,-500.0,0.00024657,2]
[328658572,1717680641204,-921.09,0.00024657,2]
[328658573,1717680641215,-500.0,0.00024657,2]
[328658574,1717680641226,-500.0,0.00024657,2]
[328658575,1717680641236,-500.0,0.00024657,2]
[328658576,1717680641247,-500.0,0.00024657,2]
[328658577,1717680641258,-1888.43,0.00024657,2]
[328658578,1717680641268,-500.0,0.00024657,2]
[328658579,1717680641279,-1296.81,0.00024657,2]
[328658580,1717680641289,-500.0,0.00024657,2]
[328658581,1717680641300,-500.0,0.00024657,2]
[328658582,1717680641310,-500.0,0.00024657,2]
[328658583,1717680641320,-1367.46,0.00024657,2]
[328658584,1717680641330,-500.0,0.00024657,2]
[328658585,1717680641340,-500.0,0.00024657,2]
[328658586,1717680641351,-500.0,0.00024657,2]
[328658587,1717680641362,-500.0,0.00024657,2]
[328658588,1717680641372,-500.0,0.00024657,2]
[328658589,1717680641383,-500.0,0.00024657,2]
[328658590,1717680641393,-500.0,0.00024657,2]
[328658591,1717680641403,-500.0,0.00024657,2]
[328658592,1717680641414,-500.0,0.00024657,2]
[328658593,1717680641424,-500.0,0.00024657,2]
[328658594,1717680641434,-500.0,0.00024657,2]
[328658595,1717680641444,-500.0,0.00024657,2]
[328658596,1717680641454,-500.0,0.00024657,2]
[328658597,1717680641464,-564.5,0.00024657,2]
[328658598,1717680641474,-500.0,0.00024657,2]
[328658599,1717680641484,-500.0,0.00024657,2]
[328658600,1717680641497,-500.0,0.00024657,2]
[328658601,1717680641506,-500.0,0.00024657,2]
[328658602,1717680641516,-651.82,0.00024657,2]
[328658603,1717680641526,-500.0,0.00024657,2]
[328658604,1717680641536,-500.0,0.00024657,2]
[328658605,1717680641546,-391.79730431,0.00024657,2]
[328658606,1717680641556,-375.15954391,0.00024657,2]
[328658608,1717680641565,-4558.68,0.00024657,2]
[328658609,1717680641575,-500.0,0.00024657,2]
[328658611,1717680641584,-500.0,0.00024657,2]
[328658613,1717680641593,-500.0,0.00024657,2]
[328658615,1717680641603,-204.21029248,0.00024657,2]
[328658618,1717680641612,-500.0,0.00024657,2]
[328658621,1717680641621,-500.0,0.00024657,2]
[328658623,1717680641631,-1883.7,0.00024657,2]
[328658626,1717680641640,-500.0,0.00024657,2]
[328658629,1717680641650,-724.13,0.00024657,2]
[328658632,1717680641660,-500.0,0.00024657,2]
[328658635,1717680641674,-576.26,0.00024657,2]
[328658638,1717680641683,-500.0,0.00024657,2]
[328658641,1717680641692,-530.62,0.00024657,2]
[328658644,1717680641701,-500.0,0.00024657,2]
[328658647,1717680641710,-500.0,0.00024657,2]
[328658650,1717680641719,-500.0,0.00024657,2]
[328658653,1717680641729,-4320.9,0.00024657,2]
[328658656,1717680641739,-500.0,0.00024657,2]
[328658659,1717680641750,-500.0,0.00024657,2]
[328658662,1717680641759,-500.0,0.00024657,2]
[328658665,1717680641769,-500.0,0.00024657,2]
[328658668,1717680641778,-500.0,0.00024657,2]
[328658671,1717680641787,-500.0,0.00024657,2]
[328658674,1717680641796,-500.0,0.00024657,2]
[328658677,1717680641806,-500.0,0.00024657,2]
[328658680,1717680641815,-500.0,0.00024657,2]
[328658683,1717680641825,-3544.57,0.00024657,2]
[328658684,1717680641834,-500.0,0.00024657,2]
[328658687,1717680641844,-500.0,0.00024657,2]
[328658690,1717680641853,-500.0,0.00024657,2]
[328658694,1717680641864,-500.0,0.00024657,2]
[328658696,1717680641873,-236.34300931,0.00024657,2]
[328658699,1717680641883,-727.36,0.00024657,2]
[328658703,1717680641893,-572.91966433,0.00024657,2]
[328658706,1717680641902,-500.0,0.00024657,2]
[328658709,1717680641912,-177.82891218,0.00024657,2]
[328658872,1717680643428,-322.17108782,0.00024657,2]
[328658874,1717680643438,-500.0,0.00024657,2]
[328658876,1717680643446,-500.0,0.00024657,2]
[328658878,1717680643456,-500.0,0.00024657,2]
[328658880,1717680643465,-500.0,0.00024657,2]
[328658882,1717680643474,-500.0,0.00024657,2]
[328658884,1717680643483,-614.4,0.00024657,2]
[328658886,1717680643492,-500.0,0.00024657,2]
[328658888,1717680643504,-500.0,0.00024657,2]
[328658890,1717680643513,-500.0,0.00024657,2]
[328658892,1717680643523,-500.0,0.00024657,2]
[328658894,1717680643532,-926.47,0.00024657,2]
[328658896,1717680643542,-500.0,0.00024657,2]
[328658898,1717680643551,-500.0,0.00024657,2]
[328658900,1717680643561,-500.0,0.00024657,2]
[328658901,1717680643570,-500.0,0.00024657,2]
[328658903,1717680643580,-500.0,0.00024657,2]
[328658906,1717680643589,-500.0,0.00024657,2]
[328658909,1717680643599,-500.0,0.00024657,2]
[328658912,1717680643608,-500.0,0.00024657,2]
[328658914,1717680643617,-500.0,0.00024657,2]
[328658916,1717680643627,-500.0,0.00024657,2]
[328658918,1717680643636,-500.0,0.00024657,2]
[328658920,1717680643646,-500.0,0.00024657,2]
[328658922,1717680643656,-500.0,0.00024657,2]
[328658924,1717680643667,-913.7,0.00024657,2]
[328658926,1717680643677,-500.0,0.00024657,2]
[328658928,1717680643686,-500.0,0.00024657,2]
[328658930,1717680643696,-500.0,0.00024657,2]
[328658932,1717680643706,-500.0,0.00024657,2]
[328658934,1717680643715,-740.15,0.00024657,2]
[328658936,1717680643725,-500.0,0.00024657,2]
[328658939,1717680643736,-1632.71,0.00024657,2]
[328658941,1717680643750,-500.0,0.00024657,2]
[328658943,1717680643761,-500.0,0.00024657,2]
[328658945,1717680643771,-500.0,0.00024657,2]
[328658947,1717680643781,-500.0,0.00024657,2]
[328658949,1717680643790,-500.0,0.00024657,2]
[328658951,1717680643800,-500.0,0.00024657,2]
[328658952,1717680643809,-500.0,0.00024657,2]
[328658955,1717680643818,-625.903157,0.00024657,2]
[328658958,1717680643828,-500.0,0.00024657,2]
[328658961,1717680643838,-500.0,0.00024657,2]
[328658964,1717680643847,-5965.86,0.00024657,2]
[328658967,1717680643856,-500.0,0.00024657,2]
[328658970,1717680643865,-500.0,0.00024657,2]
[328658973,1717680643875,-500.0,0.00024657,2]
[328658976,1717680643884,-500.0,0.00024657,2]
[328658978,1717680643892,-500.0,0.00024657,2]
[328658980,1717680643902,-577.35336352,0.00024657,2]
[328658981,1717680643911,-500.0,0.00024657,2]
[328658982,1717680643920,-500.0,0.00024657,2]
[328658983,1717680643929,-500.0,0.00024657,2]
[328658984,1717680643938,-500.0,0.00024657,2]
[328658985,1717680643947,-500.0,0.00024657,2]
[328658986,1717680643956,-500.0,0.00024657,2]
[328658987,1717680643965,-500.0,0.00024657,2]
[328658988,1717680643974,-873.6,0.00024657,2]
[328658989,1717680643982,-500.0,0.00024657,2]
[328658990,1717680643992,-689.28,0.00024657,2]
[328658991,1717680644002,-500.0,0.00024657,2]
[328658992,1717680644011,-500.0,0.00024657,2]
[328658993,1717680644020,-500.0,0.00024657,2]
[328658994,1717680644029,-1443.15,0.00024657,2]
[328658995,1717680644038,-500.0,0.00024657,2]
[328658996,1717680644047,-500.0,0.00024657,2]
[328658997,1717680644056,-791.38,0.00024657,2]
[328658998,1717680644065,-5246.02,0.00024657,2]
[328658999,1717680644074,-500.0,0.00024657,2]
[328659000,1717680644083,-500.0,0.00024657,2]
[328659001,1717680644092,-307.2703269,0.00024685,2]
[328659002,1717680644101,-4302.21372127,0.00024831,3]
[328659217,1717680647196,-973.63,0.00024657,2]
[328659219,1717680647206,-500.0,0.00024657,2]
[328659220,1717680647216,-500.0,0.00024657,2]
[328659221,1717680647225,-809.5,0.00024821,3]
[328659222,1717680647235,-3768.83449428,0.00024831,3]
[328659223,1717680647253,-14914.09012138,0.00024831,3]
[328659399,1717680679174,9685.41423845,0.00022,10]
[328659400,1717680734041,3798.36651969,0.00022,10]
[328659401,1717680752043,489.56991682,0.00022,10]
[328659424,1717681766122,-190.40082049,0.000156,2]
[328659446,1717681832354,-364.43590794,0.00018491,2]
[328659447,1717681832364,-713.07594021,0.000189,2]
[328659448,1717681832373,-24900.0,0.00020456,2]
[328659449,1717681832384,-223.42815,0.00020737,2]
[328659450,1717681832393,-383.7998292,0.00021052,2]
[328659451,1717681832402,-169.450643,0.00021296,2]
[328659453,1717681832412,-150.0,0.000215,2]
[328659454,1717681832421,-13473.11192672,0.00022,2]
[328659455,1717681832431,-225.05706064,0.00022,2]
[328659456,1717681832441,-150.99641905,0.00022457,2]
[328659457,1717681832451,-167.6314264,0.00023572,2]
[328659458,1717681832461,-15455.932095,0.0002383,2]
[328659460,1717681832470,-713.07594021,0.000239,2]
[328659462,1717681832480,-1000.0,0.00024,11]
[328659464,1717681832490,-1000.0,0.00024,7]
[328659466,1717681832500,-157.987017,0.00024247,2]
[328659468,1717681832510,-185.2960688,0.00024384,2]
[328659470,1717681832519,-4236.27632862,0.00024617,2]
[328659471,1717681832529,-10006.31883058,0.00024655,2]
[328659472,1717681832541,-383.7998292,0.00024655,2]
[328659527,1717681838499,-92.13627556,0.00024655,2]
[328659528,1717681838511,-190.34144755,0.00024655,2]
[328659529,1717681838521,-244.10296604,0.00024656,2]
[328659530,1717681838530,-741.90093431,0.00024656,2]
[328659531,1717681838541,-1082.5221238,0.00024656,2]
[328659609,1717681846568,-7336.92547468,0.00024656,2]
[328659610,1717681846578,-1870.77368237,0.00024657,7]
[328659611,1717681846588,-500.0,0.00024657,2]
[328659612,1717681846597,-500.0,0.00024657,2]
[328659614,1717681846607,-500.0,0.00024657,2]
[328659616,1717681846617,-500.0,0.00024657,2]
[328659618,1717681846626,-500.0,0.00024657,2]
[328659619,1717681846636,-500.0,0.00024657,2]
[328659620,1717681846646,-434.54512602,0.00024657,2]
[328659621,1717681846656,-500.0,0.00024657,2]
[328659622,1717681846665,-500.0,0.00024657,2]
[328659623,1717681846674,-500.0,0.00024657,2]
[328659624,1717681846684,-500.0,0.00024657,2]
[328659625,1717681846693,-500.0,0.00024657,2]
[328659626,1717681846703,-500.0,0.00024657,2]
[328659627,1717681846713,-500.0,0.00024657,2]
[328659628,1717681846722,-500.0,0.00024657,2]
[328659629,1717681846732,-174.08507671,0.00024657,2]
[328659632,1717682036346,154.9690062,9.999e-05,2]
[328659719,1717683032626,-924.28781013,0.00018391,2]
[328659721,1717683032636,-871.21736108,0.00018491,2]
[328659723,1717683032645,-292.31118058,0.00018491,2]
[328659725,1717683032655,-162.99512303,0.00022556,2]
[328659727,1717683032664,-237.69198007,0.00022557,2]
[328659729,1717683032673,-187.7715923,0.00022965,2]
[328659731,1717683032683,-178.212077,0.00022978,2]
[328659733,1717683032692,-8977.22471111,0.00023202,2]
[328660338,1717683038446,-1798.75826366,0.00023202,2]
[328660341,1717683038459,-1837.19103936,0.00023202,2]
[328660342,1717683038470,-9349.55399547,0.00023202,2]
[328660344,1717683038480,-153.0,0.000233,2]
[328660346,1717683038490,-173.303027,0.00023573,2]
[328660348,1717683038499,-1000.0,0.00024,4]
[328660350,1717683038509,-153.0,0.00024055,2]
[328660352,1717683038518,-153.0,0.00024082,2]
[328660355,1717683038528,-153.0,0.000241,2]
[328660357,1717683038537,-153.0,0.0002411,2]
[328660360,1717683038547,-4236.27632862,0.00024513,2]
[328660363,1717683038557,-192.89647917,0.00024555,2]
[328660365,1717683038566,-629.95321439,0.00024625,2]
[328660368,1717683038576,-526.42,0.00024647,3]
[328660371,1717683038585,-275.45969432,0.00024655,2]
[328660373,1717683038594,-8127.19672563,0.00024655,2]
[328660375,1717683038603,-1904.43006571,0.00024655,2]
[328660377,1717683038613,-274.63540158,0.00024655,2]
[328660379,1717683038622,-2685.28423685,0.00024655,2]
[328660381,1717683038632,-837.44661928,0.00024655,2]
[328660383,1717683038642,-164.49289543,0.00024655,2]
[328660385,1717683038651,-2011.75590866,0.00024655,2]
[328660387,1717683038660,-241.78042164,0.00024655,2]
[328660389,1717683038669,-1154.71377429,0.00024655,2]
[328660391,1717683038678,-157.59071324,0.00024655,2]
[328660393,1717683038688,-282.22872112,0.00024655,2]
[328660395,1717683038697,-309.81409605,0.00024655,2]
[328660397,1717683038707,-500.0,0.00024655,2]
[328660400,1717683038717,-500.0,0.00024655,2]
[328660401,1717683038726,-500.0,0.00024655,2]
[328660403,1717683038736,-500.0,0.00024655,2]
[328660406,1717683038745,-360.11421471,0.00024655,2]
[328660408,1717683038754,-500.0,0.00024655,2]
[328660410,1717683038763,-500.0,0.00024655,2]
[328660412,1717683038772,-500.0,0.00024655,2]
[328660414,1717683038782,-500.0,0.00024655,2]
[328660416,1717683038791,-10004.86520362,0.00024656,2]
[328660418,1717683038800,-271.47947929,0.00024656,2]
[328660420,1717683038810,-278.08277314,0.00024656,2]
[328660422,1717683038819,-441.0,0.00024656,2]
[328660423,1717683038827,-1275.05970776,0.00024657,7]
[328660425,1717683038836,-3407.76881726,0.00024657,7]
[328660427,1717683038846,-225.05706064,0.00024657,2]
[328660429,1717683038855,-13473.11192672,0.00024657,2]
[328660431,1717683038865,-16175.12436626,0.00024657,2]
[328660433,1717683038874,-500.0,0.00024657,2]
[328660435,1717683038883,-500.0,0.00024657,2]
[328660437,1717683038893,-500.89927424,0.00024657,2]
[328660439,1717683038902,-500.0,0.00024657,2]
[328660441,1717683038912,-500.0,0.00024657,2]
[328660443,1717683038921,-500.0,0.00024657,2]
[328660445,1717683038931,-500.0,0.00024657,2]
[328660447,1717683038940,-500.0,0.00024657,2]
[328660449,1717683038950,-500.0,0.00024657,2]
[328660451,1717683038960,-500.0,0.00024657,2]
[328660453,1717683038969,-500.0,0.00024657,2]
[328660455,1717683038979,-573.432475,0.00024657,2]
[328660457,1717683038988,-500.0,0.00024657,2]
[328660459,1717683038997,-500.0,0.00024657,2]
[328660461,1717683039006,-500.0,0.00024657,2]
[328660463,1717683039016,-500.0,0.00024657,2]
[328660465,1717683039025,-525.84493326,0.00024657,2]
[328660467,1717683039035,-500.0,0.00024657,2]
[328660469,1717683039044,-500.0,0.00024657,2]
[328660471,1717683039053,-500.0,0.00024657,2]
[328660473,1717683039064,-516.84554582,0.00024657,2]
[328660475,1717683039073,-500.0,0.00024657,2]
[328660477,1717683039083,-500.0,0.00024657,2]
[328660479,1717683039093,-500.0,0.00024657,2]
[328660481,1717683039103,-500.0,0.00024657,2]
[328660483,1717683039112,-500.0,0.00024657,2]
[328660485,1717683039122,-537.34518742,0.00024657,2]
[328660487,1717683039132,-500.0,0.00024657,2]
[328660489,1717683039143,-500.0,0.00024657,2]
[328660491,1717683039153,-560.08180357,0.00024657,2]
[328660493,1717683039163,-500.0,0.00024657,2]
[328660495,1717683039173,-500.0,0.00024657,2]
[328660497,1717683039183,-500.0,0.00024657,2]
[328660499,1717683039193,-500.0,0.00024657,2]
[328660501,1717683039204,-500.0,0.00024657,2]
[328660503,1717683039214,-500.0,0.00024657,2]
[328660505,1717683039224,-261.45574967,0.00024657,2]
[328660780,1717683042179,-238.54425033,0.00024657,2]
[328660782,1717683042188,-131.78843535,0.00024657,2]
[328660786,1717683042353,-368.21156465,0.00024657,2]
[328660787,1717683042363,-832.84,0.00024657,2]
[328660788,1717683042373,-500.0,0.00024657,2]
[328660789,1717683042383,-500.0,0.00024657,2]
[328660790,1717683042392,-500.0,0.00024657,2]
[328660791,1717683042401,-500.0,0.00024657,2]
[328660792,1717683042411,-500.0,0.00024657,2]
[328660793,1717683042425,-537.36362719,0.00024657,2]
[328660794,1717683042434,-500.0,0.00024657,2]
[328660795,1717683042443,-1139.9,0.00024657,2]
[328660796,1717683042453,-500.0,0.00024657,2]
[328660797,1717683042463,-500.0,0.00024657,2]
[328660798,1717683042472,-766.43,0.00024657,2]
[328660799,1717683042483,-500.0,0.00024657,2]
[328660800,1717683042495,-500.0,0.00024657,2]
[328660801,1717683042505,-584.29218765,0.00024657,2]
[328660802,1717683042514,-305.69179489,0.00024657,2]
[328660803,1717683042523,-508.5,0.00024657,2]
[328660804,1717683042532,-500.0,0.00024657,2]
[328660805,1717683042542,-249.55785547,0.00024657,2]
[328660806,1717683042552,-500.0,0.00024657,2]
[328660807,1717683042562,-500.0,0.00024657,2]
[328660808,1717683042571,-500.0,0.00024657,2]
[328660809,1717683042581,-500.0,0.00024657,2]
[328660810,1717683042590,-538.13452789,0.00024657,2]
[328660811,1717683042600,-500.0,0.00024657,2]
[328660812,1717683042609,-438.27844226,0.00024657,2]
[328660820,1717683042991,-398.92155774,0.00024657,2]
[328660822,1717683043000,-500.0,0.00024657,2]
[328660824,1717683043009,-500.0,0.00024657,2]
[328660825,1717683043018,-862.58,0.00024657,2]
[328660826,1717683043028,-500.0,0.00024657,2]
[328660827,1717683043037,-500.0,0.00024657,2]
[328660828,1717683043046,-200.0,0.00024657,2]
[328660829,1717683043055,-500.0,0.00024657,2]
[328660830,1717683043064,-500.0,0.00024657,2]
[328660831,1717683043073,-500.0,0.00024657,2]
[328660832,1717683043082,-500.0,0.00024657,2]
[328660833,1717683043091,-2272.1,0.00024657,2]
[328660834,1717683043100,-500.0,0.00024657,2]
[328660835,1717683043109,-500.0,0.00024657,2]
[328660836,1717683043118,-500.0,0.00024657,2]
[328660837,1717683043127,-500.0,0.00024657,2]
[328660838,1717683043136,-500.0,0.00024657,2]
[328660839,1717683043144,-500.0,0.00024657,2]
[328660841,1717683043154,-500.0,0.00024657,2]
[328660842,1717683043163,-500.0,0.00024657,2]
[328660843,1717683043172,-500.0,0.00024657,2]
[328660844,1717683043181,-500.0,0.00024657,2]
[328660845,1717683043190,-500.0,0.00024657,2]
[328660846,1717683043199,-500.0,0.00024657,2]
[328660847,1717683043209,-108.40634427,0.00024657,2]
[328660848,1717683043221,-403.57365573,0.00024657,2]
[328660849,1717683043231,-500.0,0.00024657,2]
[328660850,1717683043240,-500.0,0.00024657,2]
[328660851,1717683043249,-749.65,0.00024657,2]
[328660852,1717683043259,-500.0,0.00024657,2]
[328660854,1717683043268,-500.0,0.00024657,2]
[328660856,1717683043278,-500.0,0.00024657,2]
[328660858,1717683043287,-500.0,0.00024657,2]
[328660860,1717683043296,-500.0,0.00024657,2]
[328660862,1717683043306,-500.0,0.00024657,2]
[328660864,1717683043314,-500.0,0.00024657,2]
[328660866,1717683043323,-500.0,0.00024657,2]
[328660868,1717683043333,-500.0,0.00024657,2]
[328660870,1717683043342,-500.0,0.00024657,2]
[328660872,1717683043351,-500.0,0.00024657,2]
[328660874,1717683043361,-500.0,0.00024657,2]
[328660876,1717683043370,-500.0,0.00024657,2]
[328660878,1717683043379,-406.1297036,0.00024657,2]
[328660880,1717683043388,-500.0,0.00024657,2]
[328660881,1717683043399,-457.23110648,0.00024657,2]
[328660883,1717683043409,-500.0,0.00024657,2]
[328660885,1717683043423,-500.0,0.00024657,2]
[328660887,1717683043433,-500.0,0.00024657,2]
[328660889,1717683043442,-599.74,0.00024657,2]
[328660891,1717683043452,-500.0,0.00024657,2]
[328660893,1717683043463,-500.0,0.00024657,2]
[328660895,1717683043473,-500.0,0.00024657,2]
[328660897,1717683043483,-500.0,0.00024657,2]
[328660899,1717683043495,-500.0,0.00024657,2]